[Event "Swiss Championship U14 2022"]
[Site "Biel"]
[Date "2022.07.19"]
[Round "4.7"]
[White "Breyer, Thierry"]
[Black "Delangle, Alexander"]
[Result "1/2-1/2"]
[ECO "C54"]
[WhiteElo "1683"]
[BlackElo "1612"]
[Annotator "NA RC COMBH"]
[PlyCount "91"]
[EventDate "2022.07.18"]
[EventType "swiss"]
[EventCountry "SUI"]
[SourceTitle "playchess.com"]
[Source "ChessBase"]
[SourceQuality "1"]
[TimeControl "5400+30"]

1. e4 {[%emt 0:00:02]} e5 {[%emt 0:00:06]} 2. Nf3 {[%emt 0:00:05]} Nc6 {[%emt 0:00:08]} 3. Bc4 {[%emt 0:00:09]} Bc5 {[%emt 0:00:09]} 4. c3 {[%emt 0:00:07]} Nf6 {[%emt 0:00:07]} 5. d3 {[%emt 0:02:39]} d6 {[%emt 0:01:33]} 6. a4 {[%emt 0:00:21]} a5 {[%emt 0:03:45]} 7. Nbd2 {[%emt 0:01:30]} O-O {[%emt 0:06:17]} 8. O-O {[%emt 0:00:54]} h6 {[%emt 0:03:02]} 9. h3 {[%emt 0:00:33]} Be6 {[%emt 0:02:55]} 10. Bb3 {[%emt 0:01:39]} Ne7 {[%emt 0:05:40]} 11. Re1 {[%emt 0:04:39]} c6 {[%emt 0:04:10]} 12. Nh4 {[%emt 0:05:13]} Rb8 {[%emt 0:08:10]} 13. Qf3 {[%emt 0:03:36]} Ba7 {[%emt 0:05:18]} 14. Ba2 {[%emt 0:04:48]} Nh7 {[%emt 0:05:35]} 15. Nf1 {[%emt 0:05:19]} Qd7 {[%emt 0:01:46]} 16. Ng3 {[%emt 0:09:11]} Bxa2 {[%emt 0:02:07]} 17. Rxa2 {[%emt 0:01:03]} Qe6 {[%emt 0:00:33]} 18. Ra1 {[%emt 0:03:44]} Qf6 {[%emt 0:02:27]} 19. Nhf5 {[%emt 0:01:43]} Ng5 {[%emt 0:04:58]} 20. Qg4 {[%emt 0:01:48]} Nxf5 {[%emt 0:01:46]} 21. Nxf5 {[%emt 0:01:26]} Kh7 {[%emt 0:03:58]} 22. Be3 {[%emt 0:11:59]} Bxe3 {[%emt 0:01:20]} 23. fxe3 {[%emt 0:00:57]} g6 {[%emt 0:00:43]} 24. Nh4 {[%emt 0:06:09]} Qe6 {[%emt 0:03:10]} 25. Qe2 {[%emt 0:05:26]} f6 {[%emt 0:03:49]} 26. Rf1 {[%emt 0:06:21]} Rf7 {[%emt 0:01:25]} 27. Kh2 {[%emt 0:02:55]} Rbf8 {[%emt 0:03:54]} 28. g4 {[%emt 0:02:21]} d5 {[%emt 0:03:24]} 29. exd5 {[%emt 0:01:54]} Qxd5 {[%emt 0:00:00]} 30. e4 {[%emt 0:00:34]} Qd6 {[%emt 0:00:30]} 31. Rad1 {[%emt 0:02:15]} Ne6 {[%emt 0:00:56]} 32. Ng2 {[%emt 0:01:23]} Kg7 {[%emt 0:00:55]} 33. Qe3 {[%emt 0:02:09]} Rd8 {[%emt 0:02:36]} 34. h4 {[%emt 0:04:39]} Nf8 {[%emt 0:01:14]} 35. Rf3 {[%emt 0:00:54]} Qe6 {[%emt 0:01:06]} 36. Rg3 {[%emt 0:02:45]} g5 {[%emt 0:01:12]} 37. Rf1 {[%emt 0:01:27]} Ng6 {[%emt 0:01:25]} 38. h5 {[%emt 0:00:55]} Nf4 {[%emt 0:00:25]} 39. Qd2 {[%emt 0:00:34]} Rfd7 {[%emt 0:00:42]} 40. Rff3 {[%emt 0:00:54]} c5 {[%emt 0:01:20]} 41. Qc2 {[%emt 0:01:00]} b6 {[%emt 0:03:11]} 42. Ne3 {[%emt 0:00:44]} Kh7 {[%emt 0:01:09]} 43. Nf5 {[%emt 0:01:19]} c4 {[%emt 0:00:40]} 44. d4 {[%emt 0:00:23]} Nd3 {[%emt 0:01:25]} 45. Rxd3 {[%emt 0:01:18]} cxd3 {[%emt 0:00:12]} 46. Qxd3 {[%emt 0:00:11]} 1/2-1/2

[Event "Swiss Championship U14 2022"]
[Site "Biel"]
[Date "2022.07.19"]
[Round "4.8"]
[White "Guyer, Marlon"]
[Black "Gade, Niels Severin"]
[Result "1/2-1/2"]
[ECO "B90"]
[WhiteElo "1590"]
[BlackElo "1505"]
[Annotator "NA RC COMBH"]
[PlyCount "81"]
[EventDate "2022.07.18"]
[EventType "swiss"]
[EventCountry "SUI"]
[SourceTitle "playchess.com"]
[Source "ChessBase"]
[SourceQuality "1"]
[TimeControl "5400+30"]

1. e4 {[%emt 0:00:02]} c5 {[%emt 0:00:05]} 2. Nf3 {[%emt 0:00:06]} d6 {[%emt 0:00:05]} 3. d4 {[%emt 0:00:05]} cxd4 {[%emt 0:00:04]} 4. Nxd4 {[%emt 0:00:06]} Nf6 {[%emt 0:00:07]} 5. Nc3 {[%emt 0:00:05]} a6 {[%emt 0:00:05]} 6. Be3 {[%emt 0:00:05]} e5 {[%emt 0:00:07]} 7. Nb3 {[%emt 0:00:03]} Be6 {[%emt 0:00:06]} 8. f4 {[%emt 0:03:03]} Ng4 {[%emt 0:05:22]} 9. Bd2 {[%emt 0:00:00]} exf4 {[%emt 0:01:36]} 10. Bxf4 {[%emt 0:00:00]} Qf6 {[%emt 0:04:32]} 11. Qd2 {[%emt 0:05:10]} Be7 {[%emt 0:10:23]} 12. O-O-O {[%emt 0:06:19]} Nc6 {[%emt 0:00:00]} 13. h3 {[%emt 0:11:52]} Nge5 {[%emt 0:01:24]} 14. Nd5 {[%emt 0:01:28]} Bxd5 {[%emt 0:00:00]} 15. exd5 {[%emt 0:00:20]} Nb8 {[%emt 0:00:00]} 16. g4 {[%emt 0:09:27]} g5 {[%emt 0:08:37]} 17. Bg3 {[%emt 0:05:37]} Nbd7 {[%emt 0:08:54]} 18. Bd3 {[%emt 0:09:07]} Nxd3+ {[%emt 0:01:49]} 19. Qxd3 {[%emt 0:00:33]} Ne5 {[%emt 0:03:11]} 20. Bxe5 {[%emt 0:01:09]} Qxe5 {[%emt 0:00:00]} 21. Rde1 {[%emt 0:02:42]} Qf4+ {[%emt 0:02:00]} 22. Qe3 {[%emt 0:05:37]} Kd7 {[%emt 0:07:36]} 23. Rhf1 {[%emt 0:09:11]} Qxe3+ {[%emt 0:00:00]} 24. Rxe3 {[%emt 0:00:02]} Rhf8 {[%emt 0:02:36]} 25. Nd4 {[%emt 0:14:13]} f6 {[%emt 0:03:23]} 26. Ne6 {[%emt 0:03:32]} Rg8 {[%emt 0:02:26]} 27. Rfe1 {[%emt 0:05:15]} Rae8 {[%emt 0:04:53]} 28. Kd2 {[%emt 0:13:17]} h6 {[%emt 0:00:17]} 29. Kd3 {[%emt 0:07:23]} Bd8 {[%emt 0:05:24]} 30. Nd4 {[%emt 0:01:06]} Re5 {[%emt 0:01:30]} 31. Rxe5 {[%emt 0:00:49]} dxe5 {[%emt 0:02:17]} 32. Nf5 {[%emt 0:03:11]} Be7 {[%emt 0:01:48]} 33. Ke4 {[%emt 0:02:30]} Rc8 {[%emt 0:00:38]} 34. c3 {[%emt 0:01:06]} Rc4+ {[%emt 0:01:33]} 35. Kd3 {[%emt 0:00:08]} Rc5 {[%emt 0:12:46]} 36. c4 {[%emt 0:03:13]} b5 {[%emt 0:02:10]} 37. b3 {[%emt 0:00:41]} bxc4+ {[%emt 0:00:19]} 38. bxc4 {[%emt 0:00:20]} Ra5 {[%emt 0:06:19]} 39. Nxh6 {[%emt 0:00:00]} Rxa2 {[%emt 0:01:46]} 40. Ke4 {[%emt 0:00:00]} Rh2 {[%emt 0:00:00]} 41. Re3 {[%emt 0:01:29]} 1/2-1/2

[Event "Swiss Championship U14 2022"]
[Site "Biel"]
[Date "2022.07.20"]
[Round "5.1"]
[White "Arsenie, Cristian Marc"]
[Black "Malli, Suvirr"]
[Result "1/2-1/2"]
[ECO "B90"]
[WhiteElo "2001"]
[BlackElo "1957"]
[Annotator "TA"]
[PlyCount "81"]
[EventDate "2022.07.18"]
[EventType "swiss"]
[EventCountry "SUI"]
[SourceTitle "playchess.com"]
[Source "ChessBase"]
[SourceQuality "1"]
[TimeControl "5400+30"]

{[%evp 9,81,25,25,9,25,26,35,31,39,30,32,0,0,-16,0,-17,-9,-13,-13,-14,-10,-29,-20,-35,-17,-112,-79,-92,-96,-98,-58,-45,-7,-20,0,-60,0,-26,0,0,45,63,65,29,85,24,96,68,63,79,75,73,93,78,152,154,220,207,214,207,200,158,197,5,16,0,71,80,94,85,78,0,0,0]} 1. e4 {[%emt 0:00:02]} c5 {[%emt 0:00:09]} 2. Nc3 {[%emt 0:00:06]} d6 {[%emt 0:00:06]} 3. Nf3 {[%emt 0:00:04][%cal Bg1f3,Bf3d4,Bd4f5][%mdl 32]} Nf6 {[%emt 0:00:11]} 4. d4 {[%emt 0:00:04]} cxd4 {[%emt 0:00:07]} 5. Nxd4 {[%emt 0:00:04]} a6 {[%emt 0:00:14]} 6. Qd3 {[%emt 0:00:12] B90: Sicilian Najdorf: Unusual White 6th moves, 6 Be3 Ng4 and 6 Be3 e5.} e5 {[%emt 0:01:28]} 7. Nf5 {[%emt 0:00:06]} g6 {[%emt 0:18:47]} 8. Ne3 {[%emt 0:00:21] White is slightly better.} Be6 {[%emt 0:01:07] [#]} 9. Be2 $146 {[%emt 0:02:21]} ({Predecessor:} 9. Qd1 Nbd7 10. Be2 Be7 11. O-O O-O 12. Ned5 Bxd5 13. Nxd5 Nxd5 14. Qxd5 Qc7 15. Bh6 {½-½ (46) Gadimbayli,A (2315)-Eynullayev,A (2274) Baku 2017}) 9... Nbd7 {[%emt 0:02:14]} 10. Ned5 {[%emt 0:02:42]} Nxd5 {[%emt 0:07:35]} 11. Nxd5 {[%emt 0:09:12]} Nc5 {[%emt 0:01:09]} 12. Qf3 {[%emt 0:01:31] Hoping for Nf6+.} Bxd5 {[%emt 0:01:26]} 13. exd5 {[%emt 0:00:02]} Bg7 {[%emt 0:02:37]} 14. O-O {[%emt 0:09:31]} O-O {[%emt 0:01:03]} 15. c4 {[%emt 0:01:28]} f5 {[%emt 0:03:31]} 16. Qa3 {[%emt 0:00:34]} e4 {[%emt 0:04:45]} 17. f4 {[%emt 0:02:15]} (17. Bf4 $11 {remains equal.}) 17... b5 {[%emt 0:09:44]} 18. Rb1 {[%emt 0:09:44]} bxc4 {[%emt 0:15:56]} 19. Bxc4 {[%emt 0:01:41]} a5 {[%emt 0:02:05]} 20. Be3 {[%emt 0:04:52]} Rc8 {[%emt 0:01:27]} 21. Rfd1 {[%emt 0:06:23]} g5 {[%emt 0:02:50]} 22. b3 {[%emt 0:06:28]} (22. Be2 $11) 22... h6 {[%emt 0:03:40]} (22... Bh6 $15 23. Qc1 gxf4 24. Bxf4 Nd3 25. Rxd3 Bxf4 26. Qxf4 exd3) 23. g3 {[%emt 0:02:16]} gxf4 {[%emt 0:00:50]} (23... Nd3 $5 24. Bxd3 exd3 25. Rxd3 Re8 $15) 24. Bxf4 {[%emt 0:00:12]} Rf6 {[%emt 0:01:02]} 25. Qb2 {[%emt 0:03:04]} Rg6 {[%emt 0:00:40]} 26. Qe2 {[%emt 0:00:14]} Rg4 {[%emt 0:01:28]} (26... Be5 $11 27. Qh5 Qf6 28. Bxe5 dxe5) 27. Rbc1 {[%emt 0:02:34]} (27. Kh1 $16) 27... Qf6 {[%emt 0:02:57]} (27... Bf6 $11) 28. Qg2 {[%emt 0:01:34]} Nd3 {[%emt 0:01:46]} 29. Bxd3 {[%emt 0:02:46] A strong pair of Bishops.} Rxc1 {[%emt 0:00:07]} 30. Rxc1 {[%emt 0:02:31]} exd3 {[%emt 0:00:07]} 31. Qf2 {[%emt 0:04:17]} Qf7 {[%emt 0:02:05]} (31... h5 $142) 32. Qf3 $16 {[%emt 0:01:33]} Qa7+ {[%emt 0:00:27]} (32... Bd4+ $16 {was called for.} 33. Kg2 Be5 34. Bxh6 Re4) 33. Kh1 $18 {[%emt 0:01:43]} Qd4 {[%emt 0:02:01] [#]} 34. Rd1 $1 {[%emt 0:02:57][%cal Bc1d1,Bd1d3,Bd3e3,Be3e2,Be2e4][%mdl 32]} ({Inferior is} 34. Bxd6 d2 35. Rf1 Re4 36. Qxf5 d1=Q 37. Qc8+ Kh7 38. Qf5+ Kh8 39. Qc8+ Kh7 40. Qf5+ Kh8 41. Qc8+ {[#]} Re8 $3 {[%mdl 512]} 42. Qxe8+ Kh7 43. Rxd1 Qxd1+ 44. Kg2 Qxd5+ 45. Kf2 Bd4+ 46. Ke2 Qxd6 47. Qf7+ Kh8 $17) 34... Be5 {[%emt 0:04:34][%cal Re5f4]} 35. Rxd3 {[%emt 0:05:27]} Qe4 {[%emt 0:01:35][%cal Re5f4]} 36. Bxe5 {[%emt 0:03:58]} (36. Bxh6 $18 {Kg2 is the strong threat.} a4 37. Kg2) 36... Qxe5 $11 {[%emt 0:00:31]} 37. Re3 {[%emt 0:01:02]} Qa1+ {[%emt 0:00:26]} (37... Re4 $11 {keeps the balance.} 38. Rxe4 fxe4) 38. Kg2 $16 {[%emt 0:00:14]} Qxa2+ {[%emt 0:00:20]} 39. Re2 {[%emt 0:00:08]} Qb1 {[%emt 0:00:20]} 40. h3 {[%emt 0:05:21]} (40. Re6 $16) 40... Re4 $11 {[%emt 0:00:28]} 41. Rxe4 {[%emt 0:00:15] Weighted Error Value: White=0.34/Black=0.24 (precise)} 1/2-1/2

[Event "Swiss Championship U14 2022"]
[Site "Biel"]
[Date "2022.07.20"]
[Round "5.2"]
[White "Rappazzo, Johannes"]
[Black "Mattenberger, Matthias"]
[Result "0-1"]
[ECO "B90"]
[WhiteElo "1761"]
[BlackElo "2005"]
[Annotator "TA"]
[PlyCount "86"]
[EventDate "2022.07.18"]
[EventType "swiss"]
[EventCountry "SUI"]
[SourceTitle "playchess.com"]
[Source "ChessBase"]
[SourceQuality "1"]
[TimeControl "5400+30"]

{[%evp 10,86,17,7,17,19,27,20,22,28,38,7,-19,-46,-36,-51,-8,-88,-95,-95,-98,-92,-85,-91,-93,-83,-14,-95,-26,-83,0,-127,-132,-135,31,-135,-136,-109,-97,-219,-219,-251,-249,-356,-350,-421,-413,-447,-306,-863,-561,-536,-538,-516,-305,-299,-273,-295,-295,-281,-279,-255,-216,-305,-310,-295,-234,-419,-400,-418,-419,-416,-421,-379,-377,-29986,-29987,-29998,-29999]} 1. e4 {[%emt 0:00:02]} c5 {[%emt 0:00:04]} 2. Nf3 {[%emt 0:00:03]} d6 {[%emt 0:00:05]} 3. d4 {[%emt 0:00:03]} cxd4 {[%emt 0:00:04]} 4. Nxd4 {[%emt 0:00:04]} Nf6 {[%emt 0:00:03]} 5. Nc3 {[%emt 0:00:03]} a6 {[%emt 0:00:07]} 6. Qf3 {[%emt 0:00:04]} Nbd7 {[%emt 0:13:46] B90: Sicilian Najdorf: Unusual White 6th moves, 6 Be3 Ng4 and 6 Be3 e5.} 7. Be2 {[%emt 0:00:45] was the old line (7.h3).} Qb6 {[%emt 0:07:53] [#]} 8. Qe3 $146 {[%emt 0:04:23]} ({Predecessor:} 8. Nb3 e6 9. g4 Qc7 10. g5 Ne5 11. Qh3 Nfd7 12. f4 Nc6 13. Be3 g6 14. O-O-O {1-0 (30) Fedorchuk,S (2665)-Panelo Munoz,M (2450) Barbera del Valles 2010}) 8... e5 {[%emt 0:04:01] The position is equal.} 9. Nb3 {[%emt 0:04:41]} Qc7 {[%emt 0:04:58]} 10. g4 {[%emt 0:13:33]} h6 {[%emt 0:02:02]} 11. Bd2 {[%emt 0:02:16]} b5 {[%emt 0:06:59]} 12. O-O-O {[%emt 0:04:32]} Nb6 {[%emt 0:01:28] Prevents Nd5.} 13. Nd5 {[%emt 0:19:19]} (13. f4 $11) 13... Nbxd5 $17 {[%emt 0:10:22]} 14. exd5 {[%emt 0:00:06]} Nxg4 {[%emt 0:10:12]} 15. Qg3 {[%emt 0:01:04] [#]} Bf5 {[%emt 0:05:41][%csl Gf5][%cal Rc7c2]} 16. c3 {[%emt 0:02:32]} Nf6 $40 {[%emt 0:01:16][%mdl 128] Black goes for the king.} 17. f4 {[%emt 0:04:00]} Ne4 {[%emt 0:02:30]} (17... Nxd5 $17 18. Qg2 e4) 18. Qe3 {[%emt 0:00:44]} (18. Qf3 $11 {remains equal.}) 18... Qa7 {[%emt 0:04:20]} (18... Be7 $17 {And now ...b4 would win.} 19. fxe5 dxe5) 19. Qf3 {[%emt 0:05:27]} (19. Bd3 $11) 19... g6 {[%emt 0:03:13]} (19... Qf2 $17 {aiming for ...Qxf3.} 20. Be3 Qxf3 21. Bxf3 exf4) 20. Be3 {[%emt 0:02:39]} (20. Bd3 $11 Nxd2 21. Rxd2 Bxd3 22. Rxd3) 20... Qc7 {[%emt 0:00:18][%cal Oe4c3]} 21. Bd2 {[%emt 0:04:39]} exf4 {[%emt 0:03:30] Black is more active.} ({Black should try} 21... b4 $17 {...bxc3 is the strong threat.} 22. c4 Nxd2 23. Nxd2 Bg7 24. fxe5 Bxe5) 22. Bd3 $2 {[%emt 0:05:02]} (22. Rhe1 $14 O-O-O 23. Bd3 Nxd2 24. Bxf5+ gxf5 25. Nxd2) 22... Nxd2 {[%emt 0:01:18]} 23. Rxd2 {[%emt 0:00:36]} Bxd3 {[%emt 0:01:04]} 24. Re1+ {[%emt 0:00:30] [#] White does not recover from this.} (24. Rxd3 $17 Bg7 25. Re1+ Kf8 26. Qxf4) 24... Be7 $1 $19 {[%emt 0:00:25]} 25. Qxd3 {[%emt 0:02:22] Threatens to win with Rde2.} O-O {[%emt 0:02:49]} 26. Rh1 {[%emt 0:08:44]} (26. Nd4 $142 Bf6 27. Rg2) 26... Bf6 {[%emt 0:01:44]} 27. h4 {[%emt 0:02:08]} Rae8 {[%emt 0:01:39]} 28. Qf3 {[%emt 0:00:58]} Qc4 {[%emt 0:00:30] White must now prevent ...Re3.} 29. Nd4 $2 {[%emt 0:01:38]} (29. Rf2) 29... Bxd4 {[%emt 0:03:17]} 30. Rxd4 {[%emt 0:00:13]} Qxa2 {[%emt 0:00:50]} 31. Rxf4 {[%emt 0:01:52]} Re2 {[%emt 0:03:14]} 32. Qxe2 {[%emt 0:01:20]} Qa1+ {[%emt 0:00:09][%mdl 64] Skewer} 33. Kc2 {[%emt 0:00:07]} Qxh1 {[%emt 0:00:04][%mdl 4096] Endgame KQR-KQR} 34. Rd4 {[%emt 0:01:50]} Qh3 {[%emt 0:01:27]} 35. Qe7 {[%emt 0:00:25]} Qh2+ {[%emt 0:00:31]} 36. Kb3 {[%emt 0:00:23]} (36. Rd2 $142 Qg3 37. Rd3 Qf2+ 38. Rd2) 36... a5 {[%emt 0:00:27] Strongly threatening ...a4+.} 37. Qb7 {[%emt 0:00:44]} Qe2 {[%emt 0:01:38][%cal Ob5b4]} 38. Qb6 $2 {[%emt 0:00:25]} (38. Qa6) 38... a4+ {[%emt 0:00:51]} 39. Ka2 {[%emt 0:00:33]} a3 {[%emt 0:00:10]} 40. Kxa3 {[%emt 0:00:06]} Ra8+ {[%emt 0:00:05]} 41. Kb3 {[%emt 0:00:05] [#]} Ra4 $1 {[%emt 0:01:01]} 42. Qxd6 $2 {[%emt 0:04:32]} (42. Qc6 $19 Rxd4 43. cxd4) 42... Rxd4 {[%emt 0:00:10]} 43. cxd4 {[%emt 0:00:03]} Qc4+ {[%emt 0:00:07] Weighted Error Value: White=0.70/Black=0.42} 0-1

[Event "Swiss Championship U14 2022"]
[Site "Biel"]
[Date "2022.07.20"]
[Round "5.3"]
[White "Breyer, Philippe"]
[Black "Haas, Anthony"]
[Result "1-0"]
[ECO "C42"]
[WhiteElo "1743"]
[BlackElo "1638"]
[Annotator "NA RC COMBH"]
[PlyCount "65"]
[EventDate "2022.07.18"]
[EventType "swiss"]
[EventCountry "SUI"]
[SourceTitle "playchess.com"]
[Source "ChessBase"]
[SourceQuality "1"]
[TimeControl "5400+30"]

1. e4 {[%emt 0:00:00]} e5 {[%emt 0:00:47]} 2. Nf3 {[%emt 0:00:02]} Nf6 {[%emt 0:00:06]} 3. Nxe5 {[%emt 0:00:02]} d6 {[%emt 0:00:06]} 4. Nf3 {[%emt 0:00:09]} Nxe4 {[%emt 0:00:08]} 5. Nc3 {[%emt 0:00:03]} Nxc3 {[%emt 0:00:02]} 6. dxc3 {[%emt 0:00:01]} Be7 {[%emt 0:00:12]} 7. Be3 {[%emt 0:00:15]} O-O {[%emt 0:00:19]} 8. Qd2 {[%emt 0:00:23]} Nd7 {[%emt 0:00:31]} 9. O-O-O {[%emt 0:00:33]} c6 {[%emt 0:00:09]} 10. h4 {[%emt 0:00:08]} d5 {[%emt 0:00:41]} 11. h5 {[%emt 0:00:51]} Nc5 {[%emt 0:00:58]} 12. h6 {[%emt 0:00:06]} g6 {[%emt 0:00:19]} 13. c4 {[%emt 0:00:08]} Ne4 {[%emt 0:42:44]} 14. Qe1 {[%emt 0:00:03]} Be6 {[%emt 0:10:20]} 15. cxd5 {[%emt 0:06:57]} cxd5 {[%emt 0:00:44]} 16. Nd4 {[%emt 0:01:30]} Bg5 {[%emt 0:05:07]} 17. Bd3 {[%emt 0:13:09]} Nc5 {[%emt 0:04:55]} 18. Kb1 {[%emt 0:02:43]} Nxd3 {[%emt 0:11:16]} 19. Rxd3 {[%emt 0:01:38]} Re8 {[%emt 0:02:30]} 20. Qd2 {[%emt 0:02:52]} Bxe3 {[%emt 0:05:11]} 21. Rxe3 {[%emt 0:00:49]} Qd7 {[%emt 0:02:02]} 22. Rhe1 {[%emt 0:02:32]} Rac8 {[%emt 0:00:40]} 23. Qe2 {[%emt 0:01:24]} Qa4 {[%emt 0:03:40]} 24. Nxe6 {[%emt 0:03:58]} fxe6 {[%emt 0:06:30]} 25. Rxe6 {[%emt 0:00:08]} Kf8 {[%emt 0:01:31]} 26. Qf3+ {[%emt 0:00:18]} Kg8 {[%emt 0:00:21]} 27. Rxe8+ {[%emt 0:00:35]} Rxe8 {[%emt 0:00:17]} 28. Qxd5+ {[%emt 0:00:39]} Kf8 {[%emt 0:00:23]} 29. Rxe8+ {[%emt 0:03:58]} Qxe8 {[%emt 0:00:02]} 30. Qf3+ {[%emt 0:00:27]} Kg8 {[%emt 0:00:09]} 31. a3 {[%emt 0:00:37]} Qe1+ {[%emt 0:02:25]} 32. Ka2 {[%emt 0:00:02]} Qe6+ {[%emt 0:00:16]} 33. b3 {[%emt 0:00:23]} 1-0

[Event "Swiss Championship U14 2022"]
[Site "Biel"]
[Date "2022.07.20"]
[Round "5.4"]
[White "Scherler, Julius"]
[Black "Gut, Raphael"]
[Result "0-1"]
[ECO "B53"]
[WhiteElo "1971"]
[BlackElo "1898"]
[Annotator "TA"]
[PlyCount "96"]
[EventDate "2022.07.18"]
[EventType "swiss"]
[EventCountry "SUI"]
[SourceTitle "playchess.com"]
[Source "ChessBase"]
[SourceQuality "1"]
[TimeControl "5400+30"]

{[%evp 9,96,16,11,5,13,0,32,4,14,11,16,1,31,-35,-26,-118,-85,-83,-86,-150,-143,-209,-145,-163,-118,-125,-127,-189,-195,-266,-256,-321,-319,-320,-316,-320,-318,-340,-336,-335,-334,-339,-233,-242,-241,-247,-238,-275,-271,-283,-283,-345,-244,-253,-249,-279,-275,-277,-276,-336,-321,-335,-314,-529,-533,-603,-594,-603,-601,-591,-556,-534,-577,-549,-560,-629,-618,-612,-596,-733,-697,-802,-775,-929,-929,-5218,-5214,-6203,-5930]} 1. e4 {[%emt 0:00:29]} c5 {[%emt 0:00:09]} 2. Nf3 {[%emt 0:00:27]} d6 {[%emt 0:00:19]} 3. d4 {[%emt 0:00:21]} cxd4 {[%emt 0:00:00]} 4. Qxd4 {[%emt 0:00:37]} Nf6 {[%emt 0:00:20]} 5. Be2 {[%emt 0:00:40]} Nc6 {[%emt 0:00:21]} 6. Qe3 {[%emt 0:00:31] B53: Sicilian: 2...d6: Lines with Qxd4.} g6 {[%emt 0:00:57]} 7. O-O {[%emt 0:00:23]} Bg7 {[%emt 0:00:00]} 8. h3 {[%emt 0:00:53] White is slightly better.} Be6 {[%emt 0:00:36]} 9. Rd1 {[%emt 0:00:41]} O-O {[%emt 0:01:04]} 10. Nc3 {[%emt 0:00:00]} Nd7 {[%emt 0:20:48] [#]} 11. b3 $146 {[%emt 0:04:04]} ({White should try} 11. Nd5 $14) ({Predecessor:} 11. Nd5 Nc5 12. c3 Rc8 13. b3 Ne5 14. Nd4 Bd7 15. c4 e6 16. Nc3 a6 17. Bb2 {1-0 (44) Harikrishna,P (2725)-Sarana,A (2618) St Petersburg 2018}) 11... Qb6 $15 {[%emt 0:04:51]} 12. Qxb6 {[%emt 0:24:25]} (12. Qd2 $1 $11 {keeps the balance.}) 12... Nxb6 {[%emt 0:00:00]} 13. Bb2 {[%emt 0:08:39]} Nb4 {[%emt 0:12:42]} 14. e5 {[%emt 0:09:40]} (14. Rab1 $142) 14... dxe5 $17 {[%emt 0:02:13] aiming for ...e4.} 15. Rac1 {[%emt 0:06:08]} (15. Nb5 $17) 15... Bf5 {[%emt 0:00:00] White must now prevent ...Rac8.} 16. a3 {[%emt 0:06:47]} Nc6 {[%emt 0:03:15]} 17. g4 {[%emt 0:00:00]} Be6 {[%emt 0:05:22]} 18. Ng5 {[%emt 0:04:15]} (18. a4 $17) 18... Bh6 $19 {[%emt 0:07:06]} 19. h4 {[%emt 0:01:57]} (19. f4 $142) 19... Nd4 {[%emt 0:00:00]} 20. f3 {[%emt 0:02:56]} f6 {[%emt 0:00:00]} 21. Nxe6 {[%emt 0:00:34]} Bxc1 {[%emt 0:01:37]} ({Not} 21... Nxe6 22. Rb1 $17) 22. Bxc1 {[%emt 0:01:58]} Nxe6 {[%emt 0:00:00]} 23. a4 {[%emt 0:07:16]} Rfd8 {[%emt 0:00:56]} 24. a5 {[%emt 0:00:00]} Rxd1+ {[%emt 0:00:00]} 25. Nxd1 {[%emt 0:00:00]} Nd7 {[%emt 0:00:00] Threatens to win with ...Nd4.} 26. Bc4 {[%emt 0:00:00]} Ndf8 {[%emt 0:00:10]} 27. Ba3 {[%emt 0:00:00]} Kg7 {[%emt 0:00:46]} 28. Bxe7 {[%emt 0:00:00]} Re8 {[%emt 0:01:23]} 29. Ba3 {[%emt 0:00:00]} Nd4 {[%emt 0:00:49][%csl LRc2,LRf3]} 30. Kf2 {[%emt 0:00:00]} Nfe6 {[%emt 0:00:58]} 31. Ne3 {[%emt 0:00:41]} Nf4 {[%emt 0:02:15]} 32. Bc5 {[%emt 0:00:00]} Nc6 {[%emt 0:02:20]} 33. Bb5 {[%emt 0:01:39]} a6 {[%emt 0:00:26]} 34. Ba4 {[%emt 0:01:30]} Rd8 {[%emt 0:00:00]} 35. Ke1 {[%emt 0:01:55]} Nd4 {[%emt 0:01:09]} ({Wrong is} 35... Nxa5 $2 36. Bb6 Ra8 37. Bxa5) 36. Be7 $2 {[%emt 0:00:00]} (36. Bb6 Rf8 37. Kf2) 36... Rc8 {[%emt 0:00:00] Black is clearly winning.} 37. g5 {[%emt 0:01:01]} fxg5 {[%emt 0:01:00]} 38. hxg5 {[%emt 0:00:17]} Nxc2+ {[%emt 0:00:30]} 39. Nxc2 {[%emt 0:00:00]} Rxc2 {[%emt 0:00:21][%mdl 4096] Endgame KRN-KB} 40. b4 {[%emt 0:02:17]} Rb2 {[%emt 0:00:08]} 41. Bd7 {[%emt 0:04:15]} Nd3+ {[%emt 0:00:00]} 42. Kd1 {[%emt 0:00:49]} Nxb4 {[%emt 0:00:00]} 43. Bf6+ {[%emt 0:00:15]} Kf7 {[%emt 0:00:00]} 44. f4 {[%emt 0:00:26]} Rb1+ {[%emt 0:00:00]} 45. Kd2 {[%emt 0:00:00]} exf4 {[%emt 0:01:12] [#] Strongly threatening ...f3.} 46. Ba4 {[%emt 0:01:47]} Nd5 {[%emt 0:00:32]} 47. Kc2 {[%emt 0:00:07]} Rb4 {[%emt 0:00:10]} 48. Bb3 {[%emt 0:00:00] [#]} Rxb3 $1 {[%emt 0:00:21] Weighted Error Value: White=0.63/Black=0.12 (very precise)} 0-1